Cogmind - Beta 11 @@@ ROGUE MODE // 2022.03.19 @ 22:43:23 Player: Rentaro Result: Destroyed by D-53 Grenadier with Mini Grenade Launcher Performance ------------- Evolutions (1) 500 Regions Visited (3) 600 Robots Destroyed (43) 215 Value Destroyed (475) 475 Prototype IDs (3) 60 Alien Tech Used (0) 0 Bonus (0) 0 TOTAL SCORE: 1850 Bonus ------- None Cogmind --------- Core Integrity 0/400 Matter 300/300 Energy 100/100 System Corruption 7% Temperature Cool (0) Movement Rolling (180) Ox6 Location -9/Mines Parts ------- > --- POWER (1) -------- (None) > --- PROPULSION (4) --- Armored Wheel > --- UTILITY (2) ------ Huge Storage Unit > --- WEAPON (2) ------- (None) > --- INVENTORY (25) --- Ion Engine Light Ion Engine Light Ion Engine Flight Unit Flight Unit Flight Unit Disposable Heat Sink High-capacity Storage Unit Structural Scanner Sensor Array Sensor Array Signal Interpreter Seismic Detector ECM Suite Hacking Suite Small Laser Beam Cannon Light Assault Rifle Light Assault Rifle Light Assault Rifle Mining Laser Peak State ------------ > --- POWER ------------ Cooled Ion Engine > --- PROPULSION ------- Armored Wheel Armored Wheel Armored Wheel Armored Wheel > --- UTILITY ---------- Huge Storage Unit ECM Suite > --- WEAPON ----------- Beam Cannon Beam Cannon > --- INVENTORY -------- Light Ion Engine Cooled Ion Engine Armored Wheel Armored Wheel Armored Wheel Armored Wheel Flight Unit Flight Unit Flight Unit Disposable Heat Sink High-capacity Storage Unit Structural Scanner Sensor Array Sensor Array Seismic Detector Hacking Suite Small Laser Beam Cannon Light Assault Rifle Light Assault Rifle Light Assault Rifle [Rating: 18] Favorites ----------- Power Ion Engine Engine Ion Engine Propulsion Armored Wheel Wheel Armored Wheel Flight Unit Flight Unit Utility Huge Storage Unit Device ECM Suite Storage Huge Storage Unit Processor Visual Processing Unit Weapon Beam Cannon Energy Gun Medium Laser Energy Cannon Beam Cannon Ballistic Gun Light Assault Rifle Build | -11 -10 -9 -9 ------- Run | Scr Mat Mat Min Slots Evolved 2 | . . 2 . Power . | . . . . Propulsion 2 | . . 2 . Utility . | . . . . Weapon . | . . . . Parts Attached 39 | 6 8 21 4 Power 5 | 1 1 3 . Engine 5 | 1 1 3 . Core . | . . . . Reactor . | . . . . Propulsion 21 | 2 2 13 4 Treads . | . . . . Leg . | . . . . Wheel 13 | 2 2 5 4 Hover . | . . . . Flight 8 | . . 8 . Utility 7 | 1 4 2 . Device 2 | . . 2 . Storage 4 | 1 3 . . Processor 1 | . 1 . . Hackware . | . . . . Protection . | . . . . Artifact . | . . . . Weapon 6 | 2 1 3 . Energy Gun 3 | 2 1 . . Energy Cannon 2 | . . 2 . Ballistic Gun 1 | . . 1 . Ballistic Cannon . | . . . . Launcher . | . . . . Special Weapon . | . . . . Impact Weapon . | . . . . Slashing Weapon . | . . . . Piercing Weapon . | . . . . Special Melee Weapon . | . . . . Unidentified Prototypes 1 | . . 1 . Parts Lost 14 | . . 5 9 Power 1 | . . . 1 Propulsion 9 | . . 3 6 Utility . | . . . . Weapon 4 | . . 2 2 Highest Loss Streak 9 | . . 3 9 To Critical Strikes . | . . . . Average Slot Usage (%) 94 | . 95 94 90 Engine 11 | . 14 11 11 Wheel 31 | . 28 31 42 Flight 4 | . . 7 . Device 7 | . . 10 9 Storage 11 | . 14 11 11 Processor 2 | . 9 . . Energy Gun 12 | . 28 6 . Energy Cannon 9 | . . 13 17 Ballistic Gun 1 | . . 2 . Naked Turns . | . . . . Heaviest Build 92 | 14 89 92 91 Greatest Support 48 | 20 20 48 48 Greatest Overweight (x) 9 | . 4 9 6 Average Overweight (x) 1 | . 1 2 1 Largest Inventory Capacity 25 | 8 25 25 25 Average Capacity 22 | 5 16 25 25 Most Carried 24 | 5 18 24 24 Average Carried 16 | 3 11 18 23 Final Capacity 25 | 8 25 25 25 Final Carried 24 | 4 18 24 21 Class Distribution -------------------- 88% | Mutant 11% | Scavenger-Mutant Dominant Class ---------------- Mutant | -10/Materials Mutant | -9/Materials Mutant | -9/Mines Resources | -11 -10 -9 -9 ----------- Run | Scr Mat Mat Min Matter Collected 563 | 250 76 230 7 Remotely . | . . . . Salvage Created 1306 | 95 563 584 64 Parts 110 | 6 63 38 3 Haulers Intercepted 5 | . 2 3 . Recyclers Shooed 3 | . 1 2 . Parts Field Recycled . | . . . . Retrieved Matter . | . . . . Parts Self-Destructed . | . . . . Prevented . | . . . . Kills | -11 -10 -9 -9 ------- Run | Scr Mat Mat Min Combat Hostiles Destroyed 19 | . 10 7 2 Melee 2 | . . . 2 Guns 13 | . 10 3 . Cannons 4 | . . 4 . Classes Destroyed 12 | 3 5 3 1 Worker 5 | 1 1 2 1 Builder 4 | . 4 . . Tunneler 4 | 1 3 . . Hauler 5 | . 2 3 . Recycler 4 | 1 1 2 . Operator 1 | . . 1 . Watcher 3 | . 2 1 . Swarmer 12 | . 9 3 . Grunt 3 | . 1 2 . Duelist 1 | . . 1 . Sentry 1 | . . 1 . Assembled 2 | . . . 2 Best Kill Streak 6 | 2 6 3 2 Combat Bots Only 3 | . 3 3 2 Max Kills in Single Turn 2 | 1 2 1 1 Gunslinging 1 | . 1 . . Exploded . | . . . . Melee 1 | . . . 1 Uniques/NPCs Destroyed . | . . . . Combat | -11 -10 -9 -9 -------- Run | Scr Mat Mat Min Damage Taken 1953 | . 284 473 1196 Core 471 | . 63 67 341 Absorbed by Shields . | . . . . Core Remaining (%) 87 | 100 74 . . Volleys Fired 108 | 8 47 51 2 Largest 2 | 2 2 2 2 Hottest 120 | 100 100 120 120 Shots Fired 204 | 16 94 90 4 Gun 146 | 16 94 36 . Cannon 58 | . . 54 4 Launcher . | . . . . Special . | . . . . Kinetic 6 | . . 6 . Thermal 160 | 16 68 72 4 Explosive . | . . . . Electromagnetic 38 | . 26 12 . Robot Hit Streak 9 | 5 9 9 1 Robot Miss Streak 5 | 2 5 5 1 Penetration Max . | . . . . Secondary Targets 2 | . 2 . . Max Gunslinging Chain 1 | . 1 . . Shots Hit Robots 114 | 10 51 51 2 Core Hits 61 | 4 26 20 11 Critical Kills . | . . . . Critical Parts Destroyed . | . . . . Critical Strikes 8 | 2 6 . . Burn 8 | 2 6 . . Melee Attacks . | . . . . Impact . | . . . . Slashing . | . . . . Piercing . | . . . . Sneak Attacks . | . . . . Combat Hostiles . | . . . . Follow-up Attacks . | . . . . Damage Inflicted 1867 | 161 709 775 222 Guns 1032 | 161 674 197 . Cannons 630 | . . 578 52 Explosions 35 | . 35 . . Melee . | . . . . Ramming 170 | . . . 170 Kinetic 26 | . . 26 . Thermal 1467 | 161 539 715 52 Explosive . | . . . . Electromagnetic 204 | . 170 34 . Impact . | . . . . Slashing . | . . . . Piercing . | . . . . Highest Corruption 7 | . 1 . 7 Average Corruption 1 | . 1 . 2 Corruption Purged . | . . . . Corruption Blocked . | . . . . Effects 2 | . 1 . 1 Message Errors 1 | . . . 1 Data Loss (minor) 1 | . 1 . . Overload Shots . | . . . . Overflow Damage 10 | . . 10 . Projectiles 10 | . . 10 . Explosions . | . . . . Melee . | . . . . Knockbacks . | . . . . Impact . | . . . . Kinetic . | . . . . Secondary . | . . . . Self-Inflicted Damage 82 | . . . 82 Shots . | . . . . Rammed 13 | . . . 13 Targets Rammed 13 | . . . 13 Kicked . | . . . . Crushed . | . . . . Highest Temperature 261 | 156 261 236 51 Average Temperature 73 | 67 85 63 24 Received Heat Transfer 273 | . . 93 180 Siege Activations . | . . . . Robots Corrupted . | . . . . Combat Hostiles . | . . . . Parts Fried . | . . . . Impact Corruptions . | . . . . Robots Melted . | . . . . Combat Hostiles . | . . . . Parts Melted 4 | 1 2 1 . Heat Transferred 4342 | 629 1974 1628 111 Parts Sabotaged . | . . . . Parts Stolen . | . . . . Parts Stripped . | . . . . Power Chain Reactions 1 | . 1 . . Missiles Intercepted . | . . . . Alert | -11 -10 -9 -9 ------- Run | Scr Mat Mat Min Peak Influence 294 | 15 294 146 30 Initial 9 | . 9 . . Average 72 | 5 108 67 7 Maximum Alert Level 1 | . 1 . . Low Security (%) 95 | 100 84 100 100 Level 1 4 | . 15 . . Level 2 . | . . . . Level 3 . | . . . . Level 4 . | . . . . Level 5 . | . . . . High Security . | . . . . Max Security . | . . . . Squads Dispatched 4 | . 2 2 . Investigation 3 | . 2 1 . Extermination . | . . . . Reinforcement 1 | . . 1 . Assault . | . . . . Garrison . | . . . . Intercept . | . . . . Searches Triggered . | . . . . Construction Impeded . | . . . . Haulers Reinforced . | . . . . Active Scanning Responses . | . . . . Cargo Convoy Interrupts . | . . . . Stealth | -11 -10 -9 -9 --------- Run | Scr Mat Mat Min Distress Signals 6 | . 1 5 . Communications Jammed . | . . . . Distress Signals . | . . . . Times Spotted 74 | . 15 23 36 Peak Tracking Total 20 | . 4 3 20 Tactical Retreats 12 | . 1 7 4 Traps | -11 -10 -9 -9 ------- Run | Scr Mat Mat Min Traps Triggered 3 | . 1 2 . Indirectly . | . . . . Trap Hack Attempts . | . . . . Triggered . | . . . . Disarmed . | . . . . Reprogrammed . | . . . . Reused . | . . . . Traps Extracted . | . . . . Installed . | . . . . Triggered . | . . . . Machines | -11 -10 -9 -9 ---------- Run | Scr Mat Mat Min Machines Disabled 1 | . 1 . . Max in Single Turn 1 | . 1 . . Machines Sabotaged . | . . . . Garrisons Compromised . | . . . . Overloaded Fab Kills . | . . . . Hacking | -11 -10 -9 -9 --------- Run | Scr Mat Mat Min Machines Accessed 8 | . 4 4 . Terminals 6 | . 3 3 . Fabricators . | . . . . Repair Stations . | . . . . Recycling Units 1 | . 1 . . Scanalyzers 1 | . . 1 . Garrison Access . | . . . . Total Hacks 35 | . 14 21 . Successful 16 | . 4 12 . Failed 19 | . 10 9 . Catastrophic 3 | . 1 2 . Database Lockouts . | . . . . Manual 16 | . 9 7 . Terminals 22 | . 12 10 . Fabricators . | . . . . Repair Stations . | . . . . Recycling Units 2 | . 2 . . Scanalyzers 11 | . . 11 . Garrison Access . | . . . . Terminal Hacks 5 | . 3 2 . Prototype ID Bank 1 | . 1 . . Unreport Threat 2 | . 1 1 . Maintenance Status 1 | . 1 . . Registered Components 1 | . . 1 . Fabricator Hacks . | . . . . Repair Station Hacks . | . . . . Recycling Unit Hacks 1 | . 1 . . Retrieve Components 1 | . 1 . . Scanalyzer 10 | . . 10 . Insert Component 4 | . . 4 . Analyze 6 | . . 6 . Garrison Access Hacks . | . . . . Unauthorized Hacks . | . . . . Terminals . | . . . . Fabricators . | . . . . Repair Stations . | . . . . Recycling Units . | . . . . Scanalyzers . | . . . . Garrison Access . | . . . . Data Cores Recovered . | . . . . Used . | . . . . Hacking Detections 7 | . 3 4 . Full Trace Events 4 | . 2 2 . Feedback Events 1 | . 1 . . Corruption 1 | . 1 . . Feedback Blocked . | . . . . Robot Schematics Acquired . | . . . . Robots Built . | . . . . Authchips . | . . . . Time . | . . . . Total Robot Build Rating . | . . . . Part Schematics Acquired 4 | . . 4 . Parts Built . | . . . . Authchips . | . . . . Time . | . . . . Total Part Build Rating . | . . . . Parts Repaired . | . . . . Time . | . . . . Parts Recycled . | . . . . Recycled Matter . | . . . . Retrieved Matter . | . . . . Retrieved Components . | . . . . Parts Scanalyzed 4 | . . 4 . Part Schematics Acquired 4 | . . 4 . Parts Damaged . | . . . . Bothacking | -11 -10 -9 -9 ------------ Run | Scr Mat Mat Min Used RIF Installer . | . . . . Robots Hacked . | . . . . Non-combat . | . . . . Combat . | . . . . Robot Hacks Applied . | . . . . Relay Couplers Released . | . . . . Fabnet Peak Effective % . | . . . . Robots Rewired . | . . . . Allies Hacked . | . . . . Hacks Repelled . | . . . . Allies | -11 -10 -9 -9 -------- Run | Scr Mat Mat Min Total Allies . | . . . . Largest Group . | . . . . Highest-Rated Group . | . . . . Highest-Rated Ally . | . . . . Total Orders . | . . . . Ally Attacks . | . . . . Total Damage . | . . . . Kills . | . . . . Allies Corrupted . | . . . . Allies Melted . | . . . . Intel | -11 -10 -9 -9 ------- Run | Scr Mat Mat Min Robot Analysis Total . | . . . . Derelict Logs Recovered . | . . . . Drone Launches . | . . . . Drone Recoveries . | . . . . Exploration | -11 -10 -9 -9 ------------- Run | Scr Mat Mat Min Turns Passed 3118 | 105 879 1909 225 Spaces Moved 1601 | 85 673 659 184 Core 9 | 9 . . . Treads . | . . . . Legs . | . . . . Wheels 1520 | 76 673 587 184 Hover . | . . . . Flight 72 | . . 72 . Fastest Speed 50 | 50 80 105 105 Average Speed 121 | 76 104 148 107 Slowest Speed 431 | 80 140 431 180 Overloaded Moves . | . . . . Propulsion Burnouts . | . . . . Robots Hopped . | . . . . Cave-ins Triggered . | . . . . Exploration Rate (%) 37 | 5 76 41 26 Regions Visited 3 Branch Regions 1 Pre-discovered Areas . | . . . . Known Exits Taken . | . . . . Unknown Exits Taken 3 | 1 1 1 . Scrap Searched 1 | . . . 1 Spaces Dug . | . . . . Terrain Destroyed 3 | . 3 . . Melee . | . . . . Projectile . | . . . . AOE 3 | . 3 . . Terrain Rammed . | . . . . Walls Destroyed . | . . . . Machines Disabled . | . . . . Actions | -11 -10 -9 -9 --------- Run | Scr Mat Mat Min Total 2578 | 108 757 1507 206 Wait 751 | . 5 744 2 Move 1598 | 84 672 658 184 Hop . | . . . . Pick Up 47 | 10 18 19 . Fast Attach 1 | . 1 . . Attach 28 | 6 1 17 4 Detach 9 | . . 8 1 Swap 10 | . 6 4 . Drop 13 | . 7 6 . Fire 108 | 8 47 51 2 Melee . | . . . . Ram 13 | . . . 13 Kick . | . . . . Crush . | . . . . Escape Stasis . | . . . . Rewire . | . . . . Trap . | . . . . Miscellaneous . | . . . . Route ------- -11/Scrapyard -10/Materials (discovered 3 exits: *Mat x2 / [*Min]) -9/Materials (discovered 2 exits: [*Min x2]) -9/Mines History --------- Turn | Location | Event 13 | -11/Scrapyard | Discovered new exit (range 16) 106 | -11/Scrapyard | Entered Materials 316 | -10/Materials | Build established: Mutant 591 | -10/Materials | Discovered new exit (range 9) 796 | -10/Materials | Discovered new exit (range 13) 960 | -10/Materials | Discovered new exit (range 18) 985 | -10/Materials | Entered another Materials area 985 | -9/Materials | Evolved 2 slots: Propulsion x2 1525 | -9/Materials | Lost 3 parts (2n1w) 1878 | -9/Materials | Build established: Scavenger-Mutant 2230 | -9/Materials | Build established: Mutant 2809 | -9/Materials | Discovered new exit (range 16) 2812 | -9/Materials | Discovered new exit (range 13) 2894 | -9/Materials | Entered Mines 3018 | -9/Mines | Assembled infested the area 3028 | -9/Mines | A weapon hastily lodged in a ceiling crevice suddenly fell to the ground 3082 | -9/Mines | Core integrity fell below 50% 3114 | -9/Mines | Core integrity fell below 20% 3119 | -9/Mines | Destroyed by D-53 Grenadier with Mini Grenade Launcher Last Messages --------------- 03111_ as-02836 destroyed. 03111_ as-92486 destroyed. 03111_ Arm. Wheel destroyed. 03111_ as-67555 destroyed. 03111_ Slammed into D-53 Grenadier. 03111_ Lgt. Ion Engine destroyed. 03111_ System corrupted by crushing effect (+4). 03111_ Destabilizing: System corrupted (+2). 03112_ D-53 Grenadier destroyed. 03113_ as-22671 destroyed. 03113_ as-54025 destroyed. 03113_ as-65457 destroyed. 03114_ ERZ7RXSZCK